bitfinex/quotes_ETHUSD_20250916
["timestamp","ask_amount","ask_price","bid_price","bid_amount"]
[1758030060151,0.0055,4483.2,4481.8,18.18201327]
[1758030060368,0.0055,4483.2,4481.8,15.95077236]
[1758030060649,0.0055,4483.2,4482.3,2.23098407]
[1758030060940,0.0055,4483.2,4481.9,0.921]
[1758030061143,0.0055,4483.2,4482.3,2.23096934]
[1758030061446,0.792,4482.9,4480.7,0.9465]
[1758030061751,0.5045,4483.2,4481.4,0.02311445]
[1758030061921,0.459,4483.1,4481.4,0.0008]
[1758030062107,0.5045,4483.2,4481.7,15.95077236]
[1758030062339,0.0055,4483.2,4481.9,2.23117433]
[1758030062502,0.0055,4483.2,4482.0,0.96881146]
[1758030063116,0.0055,4483.2,4482.3,15.95077236]
[1758030063545,0.0055,4483.2,4483.1,15.95077236]
[1758030063747,0.0055,4483.2,4483.1,18.18137172]
[1758030063945,0.0055,4483.2,4483.1,19.12787172]
[1758030064131,0.0055,4483.2,4483.1,16.89727236]
[1758030064449,0.01,4483.9,4483.1,18.5869996]
[1758030064643,0.01,4483.9,4483.8,18.18102348]
[1758030065031,0.01,4483.9,4483.8,19.12752348]
[1758030065543,0.01,4483.9,4483.8,16.41777236]
[1758030065742,0.01,4483.9,4483.2,0.9465]
[1758030065903,0.01,4483.9,4483.3,2.23048777]
[1758030066126,0.01,4483.9,4483.7,15.95077236]
[1758030066328,0.01,4483.9,4483.8,2.23025112]
[1758030066568,0.01,4483.9,4483.8,0.9465]
[1758030066930,0.01,4483.9,4483.8,0.467]
[1758030067128,0.1112,4484.3,4483.8,0.96880251]
[1758030067333,0.1112,4484.5,4484.0,2.23014215]
[1758030067635,0.01,4484.9,4484.1,1.0577]
[1758030067636,0.1112,4484.8,4484.1,1.0577]
[1758030068092,0.1112,4484.8,4484.1,0.1112]
[1758030068364,0.1112,4484.8,4484.3,2.22995861]
[1758030068538,0.1112,4484.8,4484.1,0.1112]
[1758030068871,0.1112,4484.8,4484.4,18.18070147]
[1758030069084,0.1112,4484.8,4484.1,1.81204724]
[1758030069364,0.1112,4484.8,4484.5,15.95077236]
[1758030069567,0.01,4484.9,4484.6,2.25214604]
[1758030069767,0.01,4484.9,4484.7,2.22980355]
[1758030069928,0.01,4484.9,4484.2,0.4795]
[1758030070133,0.01,4484.9,4484.4,0.1112]
[1758030070366,0.01,4484.9,4484.4,1.98843238]
[1758030070568,0.01,4484.9,4484.7,18.18057029]
[1758030070732,0.01,4484.9,4484.8,2.34095383]
[1758030070938,0.12,4485.8,4484.8,2.34095383]
[1758030070939,0.12,4485.8,4485.7,2.22930646]
[1758030071241,0.471,4487.9,4485.7,15.95077236]
[1758030071242,0.20466778,4487.1,4485.7,15.95077236]
[1758030071471,0.012,4487.9,4486.6,15.95077236]
[1758030071838,0.499,4487.7,4486.6,15.95077236]
[1758030072039,0.499,4487.7,4486.6,18.17963162]
[1758030072440,0.499,4487.7,4486.6,18.64663162]
[1758030072770,0.012,4487.9,4486.6,19.12613162]
[1758030072987,0.20487293,4487.8,4486.7,2.22880959]
[1758030073135,0.20487293,4487.7,4487.1,2.2286109]
[1758030073336,0.012,4487.9,4487.1,2.2286109]
[1758030073540,0.012,4487.9,4487.1,0.9465]
[1758030073749,0.012,4487.9,4487.7,15.95077236]
[1758030074149,0.012,4487.9,4487.1,0.467]
[1758030074511,0.012,4487.9,4485.2,2.22954687]
[1758030074512,0.792,4487.7,4485.2,2.22954833]
[1758030074651,1.31335375,4487.6,4485.2,15.95077236]
[1758030074852,0.70359066,4487.5,4486.5,15.95077236]
[1758030075097,3.39106836,4487.4,4485.4,15.95077236]
[1758030075385,0.20459066,4487.3,4486.0,15.95077236]
[1758030075566,0.20459066,4487.2,4486.0,15.95077236]
[1758030075758,0.20459066,4487.1,4486.0,15.95077236]
[1758030075999,0.20459066,4487.3,4486.2,2.22904991]
[1758030076151,0.20459066,4487.5,4486.0,15.95077236]
[1758030076352,0.20459066,4487.8,4486.6,15.95077236]
[1758030076547,0.511,4487.9,4484.2,0.0008]
[1758030076548,0.792,4487.6,4484.2,0.0008]
[1758030076748,2.22862247,4487.1,4485.3,2.22947015]
[1758030077001,0.70359066,4487.0,4485.1,0.01]
[1758030077175,2.22871024,4486.9,4485.1,2.2395991]
[1758030077348,0.459,4487.1,4485.1,2.2395991]
[1758030077349,0.70359066,4486.8,4485.1,0.01]
[1758030077553,0.499,4486.8,4485.1,0.01]
[1758030077748,0.61525907,4486.8,4485.2,3.84791553]
[1758030077983,0.61525907,4486.8,4485.4,2.22940806]
[1758030078189,0.61525907,4486.8,4485.5,2.22940052]
[1758030078403,0.61525907,4486.8,4485.6,0.02229356]
[1758030078404,0.499,4486.7,4485.6,0.02229356]
[1758030078691,0.99659066,4486.6,4485.1,0.01]
[1758030078896,2.65888616,4486.5,4485.1,0.01]
[1758030079050,0.20459066,4486.4,4485.1,0.01]
[1758030079250,0.499,4486.5,4485.1,0.01]
[1758030079878,0.11625907,4486.8,4485.2,0.4795]
[1758030080194,0.20459066,4487.1,4485.9,2.22920026]
[1758030080351,0.459,4487.4,4485.8,15.95077236]
[1758030080352,0.20459066,4487.3,4485.8,15.95077236]
[1758030080551,0.20459066,4487.4,4485.9,0.0008]
[1758030080793,0.499,4487.5,4485.9,0.0008]
[1758030080955,0.21659066,4487.9,4486.4,15.95077236]
[1758030081290,0.1112,4487.0,4486.4,19.77479862]
[1758030081859,0.1112,4487.0,4486.5,2.22886086]
[1758030082082,0.1112,4487.0,4486.3,0.1112]
[1758030082468,0.1112,4487.0,4486.4,2.22892007]
[1758030082866,0.1112,4487.0,4486.5,0.96878908]
[1758030083064,0.1112,4487.0,4486.7,2.22880959]
[1758030083293,0.1112,4487.0,4486.6,0.467]
[1758030083459,0.1112,4487.0,4486.3,0.1112]
[1758030083665,0.499,4486.9,4485.9,0.0008]
[1758030084087,2.72695138,4486.9,4485.9,0.0008]
[1758030084266,2.7516977,4486.8,4485.9,0.0008]
[1758030084572,2.54739387,4486.8,4485.9,0.0008]
[1758030084773,0.4559,4486.7,4485.9,0.0008]
[1758030085003,2.22895204,4486.5,4485.9,0.0008]
[1758030085201,2.22887197,4486.6,4485.9,0.0008]
[1758030085369,0.47281156,4486.5,4485.9,0.0008]
[1758030085772,2.68471365,4486.7,4485.9,0.0008]
[1758030085969,2.22895997,4486.4,4485.9,0.0008]
[1758030086198,0.20436038,4486.3,4485.9,0.0008]
[1758030086403,0.9223,4486.3,4485.9,0.0008]
[1758030086600,0.4559,4486.2,4485.9,0.0008]
[1758030086785,0.11266604,4486.2,4485.9,0.0008]
[1758030086988,3.15141177,4486.1,4485.9,0.0008]
[1758030087201,0.20440062,4486.0,4485.9,0.0008]
[1758030087363,0.4664,4486.1,4485.9,0.0008]
[1758030087569,0.9223,4486.0,4485.9,0.0008]
[1758030088216,0.20440062,4486.0,4485.9,0.0008]
[1758030088425,0.20440062,4486.5,4485.9,0.0008]
[1758030088701,0.20440062,4486.4,4485.9,0.0008]
[1758030088906,0.20440062,4486.3,4485.9,0.0008]
[1758030089206,0.20440062,4486.2,4485.9,0.0008]
[1758030089407,0.20440062,4486.1,4485.9,0.0008]
[1758030089640,0.20440062,4486.0,4485.9,0.0008]
[1758030089937,0.67080062,4486.0,4485.9,0.0008]
[1758030090077,0.96078234,4486.0,4485.9,0.0008]
[1758030090273,0.49438234,4486.0,4485.9,0.0008]
[1758030090471,0.20440062,4486.0,4485.9,0.0008]
[1758030090974,0.4664,4486.8,4485.9,0.0008]
[1758030091201,0.20515064,4486.7,4485.9,0.943]
[1758030091404,0.20515064,4486.6,4485.9,0.943]
[1758030091605,0.012,4487.9,4486.0,0.96449157]
[1758030091811,0.012,4487.9,4486.1,13.16271377]
[1758030091812,0.20532303,4486.9,4486.1,13.16271377]
[1758030091975,0.20531137,4486.8,4486.0,0.0008]
[1758030092309,0.20531137,4486.7,4486.0,0.0008]
[1758030092524,2.22903129,4486.3,4486.0,0.0008]
[1758030092739,2.22910768,4486.1,4486.0,0.0008]
[1758030092891,2.43441905,4486.1,4486.0,0.0008]
[1758030093086,3.37271698,4486.1,4486.0,0.0008]
[1758030093323,4.21147868,4486.1,4486.0,0.0008]
[1758030094424,4.54076618,4486.1,4486.0,0.0008]
[1758030095126,0.6772093,4486.1,4486.0,0.0008]
[1758030095501,3.37271698,4486.1,4486.0,0.0008]
[1758030095705,1.1436093,4486.1,4486.0,0.0008]
[1758030096107,0.6772093,4486.1,4486.0,0.0008]
[1758030096639,0.20531137,4486.1,4486.0,0.0008]
[1758030096851,0.20531137,4486.1,4486.0,0.4741]
[1758030097042,0.20531137,4486.1,4486.0,0.0008]
[1758030097193,3.37532498,4486.1,4486.0,0.0008]
[1758030097391,1.70664614,4486.1,4486.0,0.0008]
[1758030097835,0.68053003,4486.1,4486.0,0.0008]
[1758030098095,1.14693003,4486.1,4486.0,0.0008]
[1758030098608,2.70361361,4486.1,4486.0,0.0008]
[1758030098822,3.17001361,4486.1,4486.0,0.0008]
[1758030099603,3.70577289,4486.1,4486.0,0.0008]
[1758030099809,4.35828235,4486.1,4486.0,0.0008]
[1758030100409,2.12917467,4486.1,4486.0,0.0008]
[1758030100950,1.01026521,4486.1,4486.0,0.0008]
[1758030101254,0.68056719,4486.1,4486.0,0.0008]
[1758030101538,0.88662845,4486.1,4486.0,0.0008]
[1758030101942,3.96638443,4486.1,4486.0,0.0008]
[1758030102098,4.43214665,4486.1,4486.0,0.0008]
[1758030102433,5.96897281,4486.1,4486.0,0.0008]
[1758030102800,2.22875498,4485.2,4485.1,0.01]
[1758030103000,5.2172697,4485.2,4485.1,0.01]
[1758030103319,5.22199395,4485.2,4485.1,0.01]
[1758030104034,5.22199395,4485.2,4485.1,2e-08]
[1758030104238,6.08576921,4485.2,4485.1,2e-08]
[1758030106235,5.63166921,4485.2,4485.1,2e-08]
[1758030106624,5.68484538,4485.2,4485.1,2e-08]
[1758030106930,4.89284538,4485.2,4485.1,2e-08]
[1758030107136,4.36567512,4485.2,4485.1,2e-08]
[1758030107338,1.06983652,4485.2,4485.1,2e-08]
[1758030107514,2.43561624,4485.2,4485.1,2e-08]
[1758030107901,0.20606126,4485.2,4485.1,2e-08]
[1758030108448,2.43561624,4485.2,4485.1,2e-08]
[1758030108600,0.20606126,4485.2,4485.1,2e-08]
[1758030109342,3.50076099,4485.2,4485.1,2e-08]
[1758030109634,4.22590151,4485.2,4485.1,2e-08]
[1758030110138,5.47200151,4485.2,4485.1,2e-08]
[1758030110343,6.53908513,4485.2,4485.1,2e-08]
[1758030110646,10.13278319,4485.2,4485.1,2e-08]
[1758030110938,8.94650744,4485.2,4485.1,2e-08]
[1758030113036,8.94650744,4485.2,4485.1,0.00080002]
[1758030114098,10.13038665,4485.2,4485.1,0.00080002]
[1758030114304,7.13038665,4485.2,4485.1,0.00080002]
[1758030114506,8.94650744,4485.2,4485.1,0.00080002]
[1758030115156,8.92630744,4485.2,4485.1,0.00080002]
[1758030115576,9.2814518,4485.2,4485.1,0.00080002]
[1758030115874,8.51650744,4485.2,4485.1,0.00080002]
[1758030116044,8.95040744,4485.2,4485.1,0.00080002]
[1758030116243,9.7394518,4485.2,4485.1,0.00080002]
[1758030116783,2.23005218,4484.2,4484.1,2e-08]
[1758030116985,2.70439064,4484.6,4484.1,0.43290002]
[1758030117312,2.23005218,4484.2,4484.1,0.29630002]
[1758030117446,2.23005218,4484.2,4484.1,0.72920002]
[1758030117647,0.47450593,4484.8,4484.1,0.72920002]
[1758030117846,2.22990334,4484.5,4484.2,0.9313]
[1758030118077,2.22940289,4485.6,4484.4,0.2963]
[1758030118290,2.22980042,4484.8,4484.4,0.2963]
[1758030118580,3.78601506,4485.8,4484.4,0.7292]
[1758030118740,2.22990299,4484.5,4484.4,1.1873]
[1758030118940,0.59174582,4485.7,4484.4,1.1873]
[1758030119177,2.22935616,4485.6,4484.4,1.1873]
[1758030119378,0.1112,4484.5,4484.4,0.7292]
[1758030119577,2.22984484,4484.7,4484.4,1.1873]
[1758030119789,2.22935616,4485.6,4484.5,0.4581]
[1758030119790,2.22945556,4485.4,4484.5,0.4581]
[1758030119995,2.22979835,4484.8,4484.5,0.897]
[1758030120160,2.22979835,4484.8,4484.7,0.2911]
[1758030120362,2.22979835,4484.8,4484.7,1.1881]
[1758030120563,2.22975383,4484.8,4484.7,1.1881]
[1758030121173,2.22975383,4484.8,4484.1,2e-08]
[1758030121174,2.22999172,4484.4,4484.2,0.4581]
[1758030121358,2.22995272,4484.4,4484.3,0.2911]
[1758030121680,2.22950527,4485.3,4484.3,1.1881]
[1758030121882,2.22992891,4484.5,4484.3,1.1881]
[1758030122187,0.792,4485.6,4484.4,0.897]
[1758030122504,2.22971215,4484.9,4484.5,0.897]
[1758030122716,2.22975899,4484.8,4484.6,0.897]
[1758030122927,0.18712403,4485.7,4484.7,1.1881]
[1758030123135,2.22954366,4485.3,4484.7,1.1889]
[1758030123431,0.20573677,4485.2,4484.7,1.1889]
[1758030123600,0.20573677,4485.2,4484.8,0.897]
[1758030123784,0.20573677,4486.0,4484.8,0.897]
[1758030123987,2.22950305,4485.4,4484.8,0.897]
[1758030124302,0.20573677,4485.3,4484.8,0.897]
[1758030124504,2.22950527,4485.3,4485.2,0.2911]
[1758030124682,2.43524204,4485.3,4485.2,0.2911]
[1758030125932,0.20573677,4485.3,4485.2,1.1881]
[1758030126091,0.002,4485.3,4485.2,1.1881]
[1758030128995,0.002,4485.3,4485.2,1.30691]
[1758030129406,0.1132,4485.3,4485.2,1.30691]
[1758030129603,0.1132,4485.3,4485.2,1.1881]
[1758030129830,0.002,4485.3,4485.2,0.95788826]
[1758030130697,0.002,4485.3,4485.2,3.18744324]
[1758030130893,0.002,4485.3,4485.2,0.95788826]
[1758030131432,0.002,4485.3,4485.2,3.29864324]
[1758030131587,0.002,4485.3,4485.2,5.16774153]
[1758030132029,0.002,4485.3,4485.2,2.82698655]
[1758030132233,0.002,4485.3,4485.2,3.18744324]
[1758030132440,0.002,4485.3,4485.2,3.20973878]
[1758030132587,0.002,4485.3,4485.2,3.18744324]
[1758030132794,0.002,4485.3,4485.2,15.45788826]
[1758030133430,0.002,4485.3,4485.2,17.68824324]
[1758030133646,0.002,4485.3,4485.2,0.95868826]
[1758030134361,0.002,4485.3,4485.2,1.27752155]
[1758030134523,0.0012,4485.3,4485.2,3.50707653]
[1758030135154,0.0012,4485.3,4485.2,1.27752155]
[1758030135827,0.0012,4485.3,4485.2,0.95868826]
[1758030137082,0.0012,4485.3,4485.2,3.21053878]
[1758030137221,0.0012,4485.3,4485.2,3.18824324]
[1758030137422,0.0012,4485.3,4485.2,3.21053878]
[1758030138158,0.0012,4485.3,4485.2,3.18824324]
[1758030138368,0.0012,4485.3,4485.2,3.73002999]
[1758030139325,0.0012,4485.3,4485.2,1.50047501]
[1758030139526,0.0012,4485.3,4485.2,0.95868826]
[1758030139860,0.0012,4485.3,4485.2,3.18824324]
[1758030140263,0.0012,4485.3,4485.2,17.68824324]
[1758030141932,0.0012,4485.3,4485.2,33.75167902]
[1758030142187,0.012,4486.9,4485.2,31.41092404]
[1758030142346,0.1112,4486.7,4486.0,15.95223578]
[1758030143176,0.1112,4486.7,4486.6,0.2911]
[1758030143377,0.012,4486.9,4486.6,0.2911]
[1758030143531,0.012,4486.9,4486.6,0.2919]
[1758030144473,2.22878105,4486.8,4486.6,0.0008]
[1758030144765,0.012,4486.9,4486.6,0.0008]
[1758030145312,0.1112,4486.8,4486.6,0.0008]
[1758030145634,0.012,4486.9,4486.7,0.9738993]
[1758030145978,0.4663,4487.6,4486.7,0.9738993]
[1758030145979,0.47426316,4488.6,4486.8,3.94418759]
[1758030146181,2.34980533,4488.8,4487.3,15.95223578]
[1758030146475,2.22790108,4488.6,4487.4,14.5]
[1758030146646,0.2936,4487.4,4486.7,0.6698993]
[1758030146971,0.4814,4487.3,4486.7,0.6698993]
[1758030147167,2.22856124,4487.2,4486.7,0.6698993]
[1758030147336,0.4814,4487.1,4486.7,0.6698993]
[1758030147531,0.4814,4487.0,4486.7,0.6698993]
[1758030147738,2.71011024,4486.9,4486.7,0.6698993]
[1758030147967,0.4814,4486.9,4486.7,0.6698993]
[1758030148344,2.22861437,4487.1,4486.7,0.6698993]
[1758030148542,2.22859311,4487.2,4486.7,0.6698993]
[1758030148758,0.4814,4487.1,4486.7,0.6698993]
[1758030149436,0.012,4487.9,4487.0,0.304]
[1758030149634,2.22826329,4487.8,4487.1,14.5]
[1758030149943,0.012,4487.9,4487.1,14.5]
[1758030150575,2.24021424,4487.9,4487.1,14.5]
[1758030150880,0.2936,4487.2,4486.7,0.6698993]
[1758030151438,2.71004887,4487.1,4486.7,0.6698993]
[1758030151739,0.4814,4487.1,4486.7,0.6698993]
[1758030151939,0.4814,4487.1,4486.6,0.0008]
[1758030152167,2.71006057,4487.0,4486.6,0.0008]
[1758030152373,0.4814,4487.0,4486.6,0.0008]
[1758030152592,0.4814,4487.6,4486.7,0.462]
[1758030152938,0.4814,4487.6,4486.8,0.02228759]
[1758030153081,0.4814,4487.6,4486.6,0.0008]
[1758030153268,0.012,4487.9,4486.7,0.9219]
[1758030153269,0.4934,4487.9,4486.7,0.9219]
[1758030153474,0.9597,4487.9,4486.6,2.21875881]
[1758030153665,2.22855648,4487.3,4486.6,0.0008]
[1758030154170,2.22847106,4487.4,4486.6,0.0008]
[1758030154488,2.22860148,4487.2,4486.6,0.0008]
[1758030154682,2.70981611,4487.5,4486.6,0.0008]
[1758030154683,2.22848211,4487.4,4486.6,0.0008]
[1758030154894,2.22853983,4487.3,4486.6,0.0008]
[1758030155051,0.4814,4487.5,4486.6,0.0008]
[1758030155400,0.012,4487.9,4486.6,2.2410474]
[1758030155597,2.22851772,4487.3,4486.6,0.0008]
[1758030155802,2.22856679,4487.2,4486.6,0.0008]
[1758030155963,0.1112,4487.2,4486.6,0.0008]
[1758030156164,0.012,4487.9,4486.6,0.0008]
[1758030156165,0.012,4487.9,4487.1,0.304]
[1758030156394,2.33956744,4487.6,4487.1,0.0008]
[1758030156561,2.82096744,4487.6,4487.1,0.0008]
[1758030156765,2.52216124,4487.2,4487.1,0.0008]
[1758030156948,2.85209609,4487.2,4487.1,0.0008]
[1758030157153,4.00600589,4487.2,4487.1,0.0008]
[1758030157388,0.49980928,4487.2,4487.1,0.0008]
[1758030157592,0.47462313,4487.3,4487.1,0.0008]
[1758030157593,0.4814,4487.6,4487.1,0.0008]
[1758030157802,0.12896727,4487.6,4487.1,0.0008]
[1758030158099,2.2285233,4487.3,4487.1,0.0008]
[1758030158298,2.22856124,4487.2,4487.1,0.0008]
[1758030158603,0.4814,4487.5,4487.1,0.0008]
[1758030158753,2.22846191,4487.4,4487.1,0.0008]
[1758030158954,2.22853351,4487.3,4487.1,0.0008]
[1758030159153,0.4814,4487.8,4487.1,0.0008]
[1758030159386,2.52216124,4487.2,4487.1,0.0008]
[1758030159682,3.32728604,4487.2,4487.1,0.0008]
[1758030159888,4.27418604,4487.2,4487.1,0.0008]
[1758030160888,4.48050825,4487.2,4487.1,0.0008]
[1758030163167,2.55862082,4487.2,4487.1,0.0008]
[1758030163393,2.72844848,4487.2,4487.1,0.0008]
[1758030163578,3.33367538,4487.2,4487.1,0.0008]
[1758030164304,2.43484848,4487.2,4487.1,0.0008]
[1758030164894,2.22856124,4487.2,4487.1,0.0008]
[1758030165081,2.52216124,4487.2,4487.1,0.0008]
[1758030165286,3.67628943,4487.2,4487.1,0.0008]
[1758030165495,3.80014006,4487.2,4487.1,0.0008]
[1758030165699,4.39061817,4487.2,4487.1,0.0008]
[1758030165897,4.59701713,4487.2,4487.1,0.0008]
[1758030166195,4.39061817,4487.2,4487.1,0.0008]
[1758030166380,2.22901288,4486.3,4486.1,1e-08]
[1758030166583,2.22866057,4487.0,4486.1,0.00080001]
[1758030166786,0.1112,4486.2,4486.1,0.00080001]
[1758030167185,0.1112,4486.2,4486.1,0.30480001]
[1758030167510,0.1112,4486.2,4486.1,1.22670001]
[1758030168439,2.2286109,4487.1,4486.1,0.00080001]
[1758030168716,0.1112,4486.3,4486.1,0.00080001]
[1758030170109,0.1112,4486.3,4486.2,0.304]
[1758030170308,0.1112,4486.5,4486.2,1.2259]
[1758030170624,0.1112,4486.5,4486.3,0.94419008]
[1758030170824,0.4814,4487.5,4486.1,0.00080001]
[1758030170825,2.52260831,4486.3,4486.1,0.00080001]
[1758030171027,2.81158251,4486.2,4486.1,0.00080001]
[1758030171226,3.75928251,4486.2,4486.1,0.00080001]
[1758030171401,4.84488251,4486.2,4486.1,0.00080001]
[1758030171600,9.31480495,4486.2,4486.1,0.00080001]
[1758030171923,8.52581052,4486.2,4486.1,0.00080001]
[1758030173517,9.11875999,4486.2,4486.1,0.00080001]
[1758030173718,8.52581052,4486.2,4486.1,0.00080001]
[1758030175543,9.118077,4486.2,4486.1,0.00080001]
[1758030175705,8.52500071,4486.2,4486.1,0.00080001]
[1758030176040,9.11726736,4486.2,4486.1,0.00080001]
[1758030176224,9.11595964,4486.2,4486.1,0.00080001]
[1758030176746,9.11595964,4486.2,4483.9,0.462]
[1758030176747,2.23005218,4484.2,4483.6,0.001]
[1758030176933,2.23005218,4484.2,4483.6,0.0018]
[1758030177106,4.4039638,4484.2,4483.6,0.0018]
[1758030177444,7.52718331,4484.2,4483.6,0.0018]
[1758030177628,2.23030086,4483.7,4483.6,1e-08]
[1758030177817,3.02235061,4483.6,4483.1,1e-08]
[1758030178048,2.5189496,4483.2,4483.1,1e-08]
[1758030178387,2.5189496,4483.2,4481.0,2.23162392]
[1758030178388,3.02259936,4483.1,4481.4,0.4928]
[1758030178532,2.23104725,4482.2,4481.1,0.4642]
[1758030179155,2.53614725,4482.2,4481.1,0.01]
[1758030179360,3.01264725,4482.2,4481.1,0.01]
[1758030179569,4.37452933,4482.2,4482.1,1e-08]
[1758030179879,8.15711409,4482.2,4482.1,1e-08]
[1758030180029,8.50558041,4482.2,4482.1,1e-08]
[1758030180228,6.89802933,4482.2,4482.1,1e-08]
[1758030180547,7.82972933,4482.2,4482.1,1e-08]
[1758030181128,24.45677697,4482.2,4482.1,1e-08]
[1758030181459,2.23154512,4481.2,4481.1,1e-08]
[1758030181671,2.23196705,4480.4,4480.0,2.07090463]
[1758030182031,0.3051,4480.2,4480.1,1e-08]
[1758030182266,2.53714321,4480.2,4480.1,1e-08]
[1758030182571,2.53714321,4480.2,4478.3,0.67108314]
[1758030182572,0.792,4480.1,4478.3,0.67108314]
[1758030182866,2.23289047,4478.5,4477.0,0.102]
[1758030183075,2.23294033,4478.4,4477.6,0.4956]
[1758030183273,2.23304006,4478.2,4477.6,0.9555]
[1758030183572,3.33014006,4478.2,4478.1,1e-08]
[1758030183776,4.26184006,4478.2,4478.1,1e-08]
[1758030183986,23.21407584,4478.2,4478.1,1e-08]
[1758030184137,3.0255887,4477.1,4477.0,1e-08]
[1758030184476,3.02568848,4476.9,4476.8,1e-08]
[1758030184672,2.23423745,4475.8,4475.6,0.05]
[1758030184974,2.23423745,4475.8,4474.5,0.12]
[1758030184975,0.3043,4475.8,4474.5,0.12]
[1758030185137,2.23445355,4475.4,4474.4,0.006]
[1758030185333,0.3043,4475.8,4475.1,1e-08]
[1758030185550,1.0971,4475.2,4475.1,1e-08]
[1758030185745,2.23451646,4475.3,4475.1,1e-08]
[1758030186034,0.4552,4477.7,4475.1,1.27030001]
[1758030186349,0.9317,4477.6,4475.2,0.9555]
[1758030186678,0.9317,4477.6,4475.1,0.31480001]
[1758030186679,2.62009358,4477.5,4475.3,0.9555]
[1758030186840,0.4765,4477.5,4475.4,0.9555]
[1758030187035,15.95223578,4477.2,4475.1,1e-08]
[1758030187277,0.9417,4477.9,4475.2,0.9555]
[1758030187453,0.01,4477.9,4475.3,15.4555]
[1758030187635,0.01,4477.9,4475.4,0.9555]
[1758030187839,0.01,4477.9,4475.7,2.23425062]
[1758030188061,0.01,4477.9,4475.6,2.23433729]
[1758030188273,2.23329863,4477.7,4475.6,0.9555]
[1758030188450,0.01,4477.9,4475.7,0.9555]
[1758030188639,0.01,4477.9,4475.8,0.02234237]
[1758030188834,0.01,4477.9,4475.9,15.62042514]
[1758030189040,2.2334256,4477.5,4475.9,15.62042514]
[1758030189237,2.23333349,4477.7,4476.0,0.9555]
[1758030189444,0.01,4477.9,4476.1,0.9555]
[1758030189863,0.01,4477.9,4476.2,0.9555]
[1758030190070,2.23359457,4477.1,4476.2,0.9555]
[1758030190277,2.23345044,4477.4,4476.3,0.4956]
[1758030190451,2.23354156,4477.2,4476.3,0.4956]
[1758030190672,2.23354234,4477.2,4476.4,0.4599]
[1758030190981,2.23359425,4477.1,4476.4,0.4599]
[1758030191303,0.23431007,4477.9,4477.0,0.3148]
[1758030191501,2.23334187,4477.6,4477.0,0.3148]
[1758030191664,2.23354985,4477.2,4477.0,0.3148]
[1758030191867,0.4625131,4477.1,4477.0,0.3148]
[1758030192061,2.6961018,4477.1,4477.0,0.02654951]
[1758030192265,2.6961018,4477.1,4475.9,14.77612514]
[1758030192266,0.19902298,4476.6,4475.9,14.77612514]
[1758030192467,0.4625131,4476.5,4476.0,1.54475342]
[1758030192707,0.19902298,4476.6,4476.5,0.3148]
[1758030193001,0.19902298,4476.6,4476.5,2.54868808]
[1758030193002,0.66147206,4476.6,4476.5,2.54868808]
[1758030193302,1.18387921,4477.8,4476.5,2.54868808]
[1758030193303,0.1112,4477.3,4476.5,1.3815]
[1758030193504,0.46268618,4477.2,4476.9,2.23368619]
[1758030193666,0.1112,4477.5,4477.1,0.3148]
[1758030193864,0.1112,4477.8,4477.2,15.47783538]
[1758030194064,0.46269189,4477.7,4477.3,0.4956]
[1758030194413,0.46269189,4477.6,4477.4,0.9555]
[1758030194607,0.792,4477.4,4476.1,0.4956]
[1758030194920,2.23366174,4477.0,4476.2,14.5]
[1758030195206,2.23378828,4476.7,4476.2,14.5]
[1758030195366,2.23395179,4476.4,4476.3,0.4956]
[1758030195561,2.69662987,4476.4,4476.3,0.8104]
[1758030195766,0.46269189,4476.4,4475.7,0.4956]
[1758030195967,2.23431283,4475.7,4475.2,0.4956]
[1758030196203,0.48502644,4475.6,4475.1,0.00080001]
[1758030196404,0.78956498,4475.2,4475.1,0.00080001]
[1758030196587,2.69722889,4475.2,4475.1,0.00080001]
[1758030196803,2.71956344,4475.2,4475.1,0.00080001]
[1758030197408,1.25620157,4475.2,4475.1,0.31560001]
[1758030197574,0.46269189,4475.2,4475.1,1.27110001]
[1758030197768,0.46269189,4475.2,4475.1,0.81120001]
[1758030198000,3.27598135,4475.2,4475.1,0.00080001]
[1758030198209,2.69722889,4475.2,4475.1,0.00080001]
[1758030199128,0.46269189,4475.2,4475.1,0.00080001]
[1758030199276,1.04167968,4475.2,4475.1,0.00080001]
[1758030199614,0.46269189,4475.2,4475.1,0.00080001]
[1758030199777,4.30542799,4475.2,4475.1,0.00080001]
[1758030199980,3.02658693,4475.1,4474.4,0.006]
[1758030200205,2.23488657,4474.5,4474.4,0.006]
[1758030200403,3.00267846,4474.5,4474.4,0.006]
[1758030200607,6.95671301,4474.5,4474.4,0.006]
[1758030200807,4.39833091,4474.5,4474.4,0.006]
[1758030200978,3.02501301,4474.5,4474.4,0.006]
[1758030201178,3.95671301,4474.5,4474.4,0.006]
[1758030201379,6.33579,4474.5,4474.4,0.006]
[1758030201620,0.792,4474.4,4474.1,0.01]
[1758030201923,2.23503643,4474.2,4474.1,0.01]
[1758030202118,5.69772832,4474.2,4474.1,0.01]
[1758030202323,8.02480916,4474.2,4474.1,0.01]
[1758030202618,3.68093667,4474.2,4474.1,0.01]
[1758030202826,3.50166287,4474.2,4474.1,0.01]
[1758030203200,3.95686287,4474.2,4474.1,0.01]
[1758030203413,0.48502644,4474.2,4474.1,0.011]
[1758030203723,2.72006287,4474.2,4474.1,0.011]
[1758030204019,1.62533579,4474.2,4474.1,0.011]
[1758030204222,0.46269189,4474.2,4474.1,0.3258]
[1758030204520,1.04485996,4474.2,4474.1,1.2813]
[1758030204824,0.46269189,4474.2,4474.1,15.7813]
[1758030205023,1.044842,4474.2,4474.1,0.3258]
[1758030205184,0.46269189,4474.2,4473.8,0.12]
[1758030205383,1.3650769,4474.4,4473.8,0.12]
[1758030205384,0.46269189,4474.1,4473.8,0.12]
[1758030205636,0.46269189,4474.0,4473.8,14.62]
[1758030205789,0.46269189,4473.9,4473.8,0.12]
[1758030205981,0.46269189,4473.9,4473.8,0.8704]
[1758030206334,1.24019597,4473.9,4473.8,15.4816]
[1758030206493,1.62885042,4473.9,4473.8,17.02986]